bitfinex-derivatives/quotes_SOLF0:USTF0_20250227
["timestamp","ask_amount","ask_price","bid_price","bid_amount"]
[1740674056662,0.04839159,138.18,138.16,0.04913522]
[1740674057166,0.05540569,138.18,138.16,0.04913522]
[1740674057756,0.05540569,138.18,138.07,5.529]
[1740674058159,2.7772,138.2,138.07,5.529]
[1740674058863,0.05373458,138.15,138.12,0.04890751]
[1740674059063,0.05373458,138.15,138.14,7.2444]
[1740674060066,2.8627,138.21,138.12,0.04890751]
[1740674060266,2.8627,138.21,138.18,7.2423]
[1740674060467,2.8627,138.21,138.07,5.529]
[1740674060667,2.8627,138.21,138.17,7.243]
[1740674061168,2.8627,138.21,138.15,7.2436]
[1740674061469,0.05327842,138.2,138.07,5.529]
[1740674061766,7.2434,138.17,138.07,5.529]
[1740674061967,3.0334,138.16,138.07,5.529]
[1740674062668,0.04785385,138.13,138.1,0.05333991]
[1740674064569,0.04785385,138.13,138.05,203.7640786]
[1740674064768,0.04785385,138.13,137.99,9.9414405]
[1740674065067,191.0,138.15,137.99,9.9414405]
[1740674065469,212.62,138.14,137.99,9.9414405]
[1740674065866,0.05269583,138.08,138.06,0.05564297]
[1740674066066,7.2486,138.07,137.99,9.9414405]
[1740674066267,12.58,138.08,137.99,9.9414405]
[1740674067369,0.04564467,138.05,138.02,0.05439785]
[1740674067767,0.04564467,138.05,137.97,196.96]
[1740674068261,7.29514467,138.05,137.97,196.96]
[1740674068469,0.04564467,138.05,137.91,6.3479]
[1740674068662,12.58,138.08,137.92,7.256]
[1740674068663,2.996,138.04,137.92,7.256]
[1740674069067,0.0465013,137.99,137.97,0.05299315]
[1740674069372,2.996,138.04,137.97,0.05299315]
[1740674069567,0.05322094,137.99,137.97,0.05299315]
[1740674069868,12.58,138.08,137.97,0.05299315]
[1740674070171,12.58,138.08,137.92,12.58]
[1740674070768,3.0089,138.11,137.93,1.29813319]
[1740674070969,3.0089,138.11,137.99,0.05459034]
[1740674071768,3.0089,138.11,137.95,0.5305]
[1740674071970,7.2482,138.08,138.01,7.2511]
[1740674072371,7.2498,138.05,137.98,7.2526]
[1740674072571,3.0089,138.11,137.95,0.5305]
[1740674073076,0.05043618,138.03,138.0,0.04829292]
[1740674073280,2.9603,138.1,137.95,0.5305]
[1740674073574,0.04588601,138.03,138.0,0.05298639]
[1740674073774,2.9603,138.1,137.95,0.5305]
[1740674073965,7.082e-05,138.03,138.0,0.05276581]
[1740674074171,15.2983,138.13,138.0,21.74]
[1740674074369,15.2983,138.13,138.01,2.8256]
[1740674074577,2.7383,138.13,138.01,2.8256]
[1740674074779,18.2786,138.18,138.02,0.5305]
[1740674074971,18.2786,138.18,138.02,3.2808]
[1740674075174,0.05526368,138.11,138.09,0.04912258]
[1740674075370,0.05526368,138.11,138.02,3.2808]
[1740674075678,5.7186,138.18,138.02,3.2808]
[1740674075679,7.2431,138.17,138.11,7.2458]
[1740674075880,8.013e-05,138.08,138.03,192.5633403]
[1740674076177,5.7186,138.18,138.02,3.2808]
[1740674076380,5.7186,138.18,138.03,1.2970722]
[1740674076878,7.2442,138.15,138.1,7.2464]
[1740674077076,0.05109615,138.12,138.1,7.2464]
[1740674077275,0.05109615,138.12,138.09,7.29241113]
[1740674077579,0.05109615,138.12,138.09,0.04561113]
[1740674077781,0.05109615,138.12,138.1,7.2464]
[1740674078079,0.05109615,138.12,138.09,0.04561113]
[1740674078375,0.05109615,138.12,138.11,7.2462]
[1740674078682,5.7186,138.18,138.09,21.76561113]
[1740674078876,7.2425,138.18,138.14,7.2443]
[1740674079273,12.56,138.2,138.06,12.54]
[1740674079675,2.7952,138.21,138.06,12.54]
[1740674079880,0.05496142,138.14,138.12,0.05094894]
[1740674080077,5.833,138.23,138.06,205.1033403]
[1740674080279,5.833,138.23,138.1,197.04]
[1740674080577,5.833,138.23,138.11,3.4268]
[1740674080783,5.833,138.23,138.11,2.8932]
[1740674080979,7.2412,138.21,138.11,2.8932]
[1740674081184,5.833,138.23,138.11,2.8932]
[1740674081378,0.05356385,138.17,138.15,0.0492019]
[1740674081878,0.05356385,138.17,138.16,7.2436]
[1740674082387,0.05356385,138.17,138.15,7.2931019]
[1740674082981,0.05356385,138.17,138.15,0.0492019]
[1740674083382,0.05356385,138.17,138.1,197.04]
[1740674083985,7.2444,138.15,138.1,197.04]
[1740674084188,12.52,138.21,138.1,197.04]
[1740674084597,7.2448,138.14,138.1,197.04]
[1740674084787,0.05500776,138.17,138.14,0.05250104]
[1740674084990,7.2435,138.17,138.14,0.05250104]
[1740674085191,7.28932285,138.17,138.1,197.04]
[1740674085482,7.28932285,138.17,138.14,7.29545524]
[1740674085686,7.2439,138.16,138.14,0.05085524]
[1740674085881,0.04582285,138.17,138.14,0.05085524]
[1740674086490,0.04582285,138.17,138.1,197.04]
[1740674086691,0.04582285,138.17,138.05,2.7927]
[1740674086880,12.52,138.21,138.07,7.2481]
[1740674087084,12.52,138.21,138.04,2.7639]
[1740674087590,7.2471,138.1,138.04,2.7639]
[1740674087787,0.05497002,138.14,138.04,2.7639]
[1740674087990,2.9226,138.18,138.06,0.04864705]
[1740674088188,0.04671967,138.1,138.04,2.7639]
[1740674088490,7.244,138.16,138.11,7.29213526]
[1740674088681,2.9226,138.18,138.04,2.7639]
[1740674089290,7.2437,138.16,138.04,2.7639]
[1740674089491,0.05336471,138.12,138.1,0.04755123]
[1740674090486,0.05336471,138.12,138.11,7.2462]
[1740674090686,0.05336471,138.12,138.1,0.04755123]
[1740674091194,0.05336471,138.12,138.02,196.98]
[1740674091494,12.48,138.14,138.03,7.2499]
[1740674091690,2.7291,138.13,137.97,120.52032698]
[1740674091994,2.7291,138.13,137.97,117.84862698]
[1740674092391,193.7291,138.13,137.97,117.84862698]
[1740674092591,7.2488,138.06,138.05,6.568e-05]
[1740674092890,19.7488,138.06,138.05,6.568e-05]
[1740674093084,47.1173,138.06,138.05,6.568e-05]
[1740674093292,18.1285,138.06,138.05,6.568e-05]
[1740674093486,18.1285,138.06,137.99,35.00937751]
[1740674093684,18.1285,138.06,137.99,26.17077751]
[1740674093891,7.2503,138.04,137.99,26.17077751]
[1740674094391,18.1285,138.06,137.96,78.42543705]
[1740674094792,0.05373221,138.02,138.0,0.05534671]
[1740674099091,0.05373221,138.02,138.0,7.30684671]
[1740674099393,0.05373221,138.02,138.0,0.05534671]
[1740674099693,0.05373221,138.02,138.01,7.2515]
[1740674100095,3.221e-05,138.02,138.01,7.2515]
[1740674100295,3.221e-05,138.02,138.01,10.0478]
[1740674100496,3.221e-05,138.02,138.01,7.2515]
[1740674100696,3.221e-05,138.02,137.93,2.7963]
[1740674100893,8.3562,138.11,137.94,14.5101]
[1740674101099,5.4934,138.11,137.94,192.5633403]
[1740674101300,5.4934,138.11,137.95,1.29784947]
[1740674101494,5.4934,138.11,137.97,14.507]
[1740674101701,5.4934,138.11,137.98,209.62]
[1740674101895,4.565e-05,138.05,138.03,0.04636045]
[1740674102199,15.3828,138.15,137.99,5.4933]
[1740674102391,7.2454,138.13,137.99,5.4933]
[1740674102791,15.3828,138.15,137.99,2.7893]
[1740674103005,192.33156494,138.14,137.98,197.1]
[1740674103299,0.04961718,138.08,138.06,0.05365476]
[1740674103503,15.3828,138.15,138.06,0.05365476]
[1740674103693,0.04574055,138.08,137.94,5.4005]
[1740674103902,7.56384713,138.14,137.95,7.2545]
[1740674103903,7.2505,138.03,137.95,7.2545]
[1740674104102,191.0,138.06,137.9,2.7366]
[1740674104303,2.6657,138.02,137.9,5.6661]
[1740674104801,2.6657,138.02,137.9,2.9295]
[1740674105001,0.05094401,137.97,137.95,0.05301569]
[1740674105403,12.58,137.98,137.95,0.05301569]
[1740674105598,0.04793201,137.97,137.95,0.05301569]
[1740674106506,0.04793201,137.97,137.88,2.6639]
[1740674106704,2.92483201,137.97,137.87,78.42543705]
[1740674106901,2.8769,137.97,137.87,78.42543705]
[1740674107505,10.131,137.97,137.87,85.68423705]
[1740674107813,0.0474975,137.93,137.91,0.04895767]
[1740674108712,12.6,138.03,137.91,21.80895767]
[1740674108909,12.6,138.03,137.92,2.8787]
[1740674109110,7.2522,138.0,137.92,2.8787]
[1740674109414,12.6,138.03,137.92,2.8787]
[1740674109816,0.05094904,137.98,137.96,0.04830654]
[1740674110003,12.6,138.08,137.96,0.04830654]
[1740674110210,19.8483,138.08,137.99,7.2521]
[1740674110504,2.8687,138.09,137.93,195.2217403]
[1740674111009,2.8687,138.09,137.93,2.6584]
[1740674111214,0.05399099,138.02,138.0,0.05346538]
[1740674111411,0.05399099,138.02,137.93,2.6584]
[1740674111810,2.8687,138.09,137.93,2.6584]
[1740674112006,2.8687,138.09,137.95,7.2546]
[1740674112617,0.04585783,138.03,138.01,0.04707566]
[1740674112817,19.91635783,138.03,138.01,0.04707566]
[1740674113017,12.62,138.03,138.01,0.04707566]
[1740674113214,12.67239764,138.03,138.01,0.04707566]
[1740674114112,0.05239764,138.03,138.02,7.2509]
[1740674114316,0.05239764,138.03,138.01,0.04707566]
[1740674114911,0.05239764,138.03,138.02,7.2509]
[1740674115113,0.05239764,138.03,138.01,0.04707566]
[1740674117913,7.2509,138.02,138.01,0.04707566]
[1740674118315,0.05239764,138.03,138.01,0.04707566]
[1740674120718,7.2509,138.02,138.01,0.04707566]
[1740674121124,0.05239764,138.03,138.01,0.04707566]
[1740674121624,7.2529,137.99,137.95,7.2543]
[1740674122621,0.05274948,137.98,137.92,200.0587]
[1740674122822,0.05274948,137.98,137.96,0.05559855]
[1740674123024,1.8982,138.01,137.88,78.42543705]
[1740674124129,7.2551,137.94,137.93,0.04840567]
[1740674124622,12.60616889,137.96,137.88,78.42543705]
[1740674125022,12.56,137.96,137.88,78.42543705]
[1740674125326,19.8141,137.96,137.91,7.2564]
[1740674125523,1.8982,138.01,137.88,78.42543705]
[1740674125720,0.04691849,137.95,137.92,0.0519347]
[1740674126029,14.5465,138.02,137.94,7.2551]
[1740674126425,14.5465,138.02,137.88,78.42543705]
[1740674127125,0.05404063,137.96,137.94,0.05267908]
[1740674127325,14.5465,138.02,137.94,0.05267908]
[1740674127827,7.2542,137.96,137.94,0.05267908]
[1740674128129,0.05215203,137.99,137.94,0.05267908]
[1740674129631,7.2537,137.97,137.94,0.05267908]
[1740674129829,0.05215203,137.99,137.94,0.05267908]
[1740674130025,7.2546,137.95,137.94,0.05267908]
[1740674131023,0.05106918,137.96,137.84,5.8482]
[1740674131230,12.58,137.95,137.86,7.2591]
[1740674131625,12.58,137.95,137.84,5.8482]
[1740674131829,12.58,137.95,137.87,7.2585]
[1740674132029,12.58,137.95,137.84,5.8482]
[1740674132333,0.05418895,137.92,137.9,0.05113418]
[1740674134026,7.2567,137.91,137.9,0.05113418]
[1740674134836,0.05418895,137.92,137.83,7.2605]
[1740674135039,7.2591,137.87,137.83,7.2605]
[1740674135237,1.8855,137.94,137.8,34.15996043]
[1740674135440,1.8855,137.94,137.84,7.2601]
[1740674136140,7.2578,137.89,137.88,0.02435418]
[1740674138642,0.05206207,137.9,137.88,0.02435418]
[1740674138842,7.30946207,137.9,137.88,0.02435418]
[1740674140239,2.0017,137.97,137.88,0.02435418]
[1740674140538,14.5017,137.97,137.92,7.2562]
[1740674140942,12.5,137.97,137.92,7.2562]
[1740674141144,12.5,137.97,137.82,12.5]
[1740674141337,12.5,137.97,137.93,7.2556]
[1740674141540,1.8946,137.98,137.93,7.2556]
[1740674141733,0.05256776,137.96,137.93,7.2556]
[1740674141935,0.05256776,137.96,137.94,0.05129252]
[1740674142347,7.30696776,137.96,137.94,0.05129252]
[1740674142737,0.05256776,137.96,137.94,0.05129252]
[1740674146642,14.3136,138.01,137.94,0.05129252]
[1740674146643,12.46,138.01,137.94,0.05129252]
[1740674147045,7.2533,137.98,137.94,7.30609252]
[1740674147351,1.8625,138.02,137.94,0.05129252]
[1740674147538,7.2531,137.98,137.95,7.2543]
[1740674147945,7.3033677,137.98,137.95,7.2543]
[1740674148247,7.3033677,137.98,137.95,7.30252688]
[1740674149149,7.2536,137.97,137.95,0.04822688]
[1740674149343,0.0502677,137.98,137.95,0.04822688]
[1740674149648,7.2541,137.96,137.95,0.04822688]
[1740674149843,21.7902677,137.98,137.87,1.868]
[1740674150049,7.2565,137.92,137.88,7.2581]
[1740674150349,1.9606,137.95,137.88,7.2581]
[1740674150549,7.2575,137.9,137.86,204.5593]
[1740674150744,7.2575,137.9,137.83,1.9929]
[1740674150944,0.04671316,137.89,137.87,0.05112714]
[1740674151144,7.30451316,137.89,137.87,0.05112714]
[1740674151345,0.04671316,137.89,137.87,0.05112714]
[1740674153242,0.04671316,137.89,137.88,7.2583]
[1740674154249,0.04671316,137.89,137.87,7.30972714]
[1740674154450,0.04671316,137.89,137.87,0.05112714]
[1740674155442,0.04671316,137.89,137.87,7.30952714]
[1740674155853,0.04671316,137.89,137.88,7.2583]
[1740674157351,12.42,137.96,137.87,0.05112714]
[1740674157549,7.2554,137.94,137.83,1.9929]
[1740674157749,12.42,137.96,137.83,1.9929]
[1740674158152,7.2549,137.95,137.83,1.9929]
[1740674158550,0.05214124,137.9,137.88,0.05458999]
[1740674158750,3.7447,137.99,137.88,0.05458999]
[1740674158953,1.8981,138.01,137.85,14.5196]
[1740674159456,1.8981,138.01,137.86,14.5185]
[1740674159852,7.2531,137.98,137.96,7.2541]
[1740674160250,7.2531,137.98,137.92,0.04606937]
[1740674160452,0.04838528,137.98,137.89,197.3]
[1740674160649,7.2517,138.01,137.9,3.8937]
[1740674160958,9.702e-05,137.95,137.94,7.2551]
[1740674161151,9.133,138.02,137.9,3.8937]
[1740674161654,1.8818,138.02,137.9,3.8937]
[1740674161852,10.01731907,138.04,137.9,208.8370403]
[1740674162051,17.26741907,138.04,138.0,7.2517]
[1740674162253,10.01731907,138.04,137.96,0.05521867]
[1740674162452,0.05518725,138.03,137.99,0.05161175]
[1740674162652,10.01731907,138.04,137.92,1.8765]
[1740674162855,0.04884796,138.02,138.0,0.04790648]
[1740674163159,0.04884796,138.02,137.92,1.8765]
[1740674163354,0.04884796,138.02,138.0,0.05519847]
[1740674163658,0.04695799,138.02,138.0,0.05103456]
[1740674164356,7.2515,138.01,138.0,0.05103456]
[1740674164560,0.04695799,138.02,137.92,1.8765]
[1740674164755,1.9023,138.07,137.92,1.8765]
[1740674165560,14.4978,138.06,137.92,1.8765]
[1740674165863,7.2525,137.99,137.98,0.04876189]
[1740674166460,0.05234951,138.01,137.92,1.8765]
[1740674166662,4.0257,138.01,137.9,2.0079]
[1740674167560,7.2524,138.0,137.9,2.0079]
[1740674167766,0.04768839,137.97,137.94,0.0489731]
[1740674168058,12.4,138.07,137.94,0.0489731]
[1740674168263,12.4,138.07,137.9,194.5712403]
[1740674168760,7.2501,138.04,137.9,194.5712403]
[1740674168952,7.2501,138.04,137.91,12.4]
[1740674169154,7.2494,138.05,137.92,1.9207]
[1740674169366,9.971e-05,137.99,137.96,0.05465606]
[1740674169553,9.971e-05,137.99,137.92,1.9207]
[1740674169760,7.249,138.06,137.92,1.9207]
[1740674169959,12.4,138.07,137.92,194.4840403]
[1740674170364,7.2495,138.05,138.01,7.2511]
[1740674170765,0.04614239,138.04,138.01,7.2511]
[1740674170971,0.04614239,138.04,138.02,0.0485782]
[1740674171366,0.04614239,138.04,137.92,194.4840403]
[1740674171572,7.2523,138.0,137.96,7.2537]
[1740674171871,12.4,138.07,137.92,1.9207]
[1740674172276,41.73768511,138.07,137.92,7.256]
[1740674172576,0.05207651,138.01,137.98,0.0547475]
[1740674172775,12.4,138.0,137.9,2.0079]
[1740674173072,0.04971299,138.01,137.98,0.0479708]
[1740674173262,12.4,138.05,137.9,14.4079]
[1740674173464,0.05040186,138.01,137.98,0.04694299]
[1740674173866,7.252,138.0,137.98,0.04694299]
[1740674174266,0.05040186,138.01,137.98,0.04694299]
[1740674174676,0.05040186,138.01,137.98,7.29994299]
[1740674174880,0.05040186,138.01,137.98,0.04694299]
[1740674175175,1.929,138.08,138.03,7.2501]
[1740674175574,1.929,138.08,137.99,1.8557]
[1740674175778,7.2495,138.05,138.01,7.2512]
[1740674175975,1.929,138.08,137.94,2.036]
[1740674176281,0.05577182,138.02,138.0,0.05584449]
[1740674176484,1.929,138.08,138.0,0.05584449]
[1740674176679,0.05269986,138.02,138.0,0.05584449]
[1740674176875,1.9765,138.07,138.0,0.05584449]
[1740674177074,12.47303664,138.02,137.9,2.0309]
[1740674177273,3.7582,138.01,137.9,2.0309]
[1740674177578,3.7582,138.01,137.92,7.256]
[1740674177976,7.2539,137.97,137.92,7.256]
[1740674178281,0.05365485,137.98,137.95,0.05286389]
[1740674178679,7.254,137.97,137.92,7.2558]
[1740674178875,0.05351117,137.98,137.95,0.05458037]
[1740674179074,7.2541,137.96,137.9,12.0669071]
[1740674179273,7.2541,137.96,137.95,0.04597948]
[1740674179480,7.2541,137.96,137.92,7.2558]
[1740674179679,0.04904093,137.97,137.94,0.05461518]
[1740674180471,7.30294093,137.97,137.94,0.05461518]
[1740674181481,21.78904093,137.97,137.85,1.9977]
[1740674181680,191.0,138.0,137.83,40.08796433]
[1740674182081,205.5054,137.99,137.83,40.08796433]
[1740674182581,0.04715224,137.92,137.9,0.05012668]
[1740674182886,12.42,137.92,137.83,47.34856433]
[1740674183084,12.47566172,137.92,137.9,0.04981625]
[1740674183284,7.2584,137.88,137.83,47.34856433]
[1740674183586,12.42,137.92,137.84,0.05511389]
[1740674183789,0.04670093,137.87,137.84,0.05511389]
[1740674183977,12.42,137.97,137.84,0.05511389]
[1740674184181,7.2559,137.93,137.86,7.2592]
[1740674184483,7.2559,137.93,137.81,203.0419]
[1740674184684,7.2571,137.91,137.81,203.0419]
[1740674184886,12.42,137.97,137.81,203.0419]
[1740674185085,0.05285944,137.87,137.85,0.05080883]
[1740674185287,7.256,137.93,137.86,7.259]
[1740674185482,0.05196853,137.87,137.86,7.259]
[1740674185786,0.04739974,137.88,137.87,7.2588]
[1740674185984,1.8816,137.98,137.81,215.4619]
[1740674186390,12.44,138.0,137.94,7.2551]
[1740674186582,12.44,138.0,137.83,14.5218]
[1740674186782,12.44,138.0,137.95,7.2545]
[1740674186983,12.44,138.0,137.84,1.45095763]
[1740674187183,0.04775565,137.99,137.96,0.04976097]
[1740674187388,12.44,138.0,137.94,7.2548]
[1740674187585,0.05012163,137.99,137.96,0.04695053]
[1740674187989,0.04630025,137.99,137.96,7.30332377]
[1740674188584,0.04630025,137.99,137.96,0.04932377]
[1740674188781,10.01731907,138.04,137.96,0.04932377]
[1740674189797,7.2523,138.0,137.96,0.04932377]
[1740674190785,7.30298415,138.01,137.96,0.04932377]
[1740674191288,7.2521,138.0,137.96,7.30292377]
[1740674191588,0.05138415,138.01,137.96,0.04932377]
[1740674191787,7.2523,138.0,137.96,0.04932377]
[1740674191983,0.05138415,138.01,137.96,0.04932377]
[1740674192891,7.2522,138.0,137.96,0.04932377]
[1740674193192,0.05138415,138.01,137.96,0.04932377]
[1740674194592,7.2536,137.97,137.96,0.04932377]
[1740674194794,12.38,138.02,137.89,9.1652]
[1740674194795,3.9507,138.0,137.89,9.1652]
[1740674195094,7.2571,137.91,137.87,10.0360071]
[1740674195295,0.05321521,137.98,137.87,10.0360071]
[1740674195589,3.9507,138.0,137.87,10.0360071]
[1740674195989,3.9507,138.0,137.92,0.05368876]
[1740674196193,7.2557,137.93,137.92,0.05368876]
[1740674197189,7.257,137.91,137.85,2.0401]
[1740674197594,16.4554,138.0,137.87,7.2585]
[1740674197795,7.255,137.95,137.85,2.0401]
[1740674197998,1.951,138.0,137.85,2.0401]
[1740674198191,1.951,138.0,137.9,7.2567]
[1740674198392,0.0472166,137.94,137.91,0.05507767]
[1740674198588,1.951,138.0,137.85,2.0401]
[1740674198793,0.04697274,137.94,137.91,0.04614188]
[1740674199098,0.0534973,137.94,137.91,0.04977786]
[1740674199298,0.0534973,137.94,137.93,7.2553]
[1740674199492,0.0534973,137.94,137.91,0.04977786]
[1740674200404,7.256,137.93,137.91,0.04977786]
[1740674200701,0.0534973,137.94,137.91,0.04977786]
[1740674201498,7.2561,137.93,137.91,0.04977786]
[1740674201691,0.0534973,137.94,137.91,0.04977786]
[1740674202100,7.2562,137.92,137.91,0.04977786]
[1740674203199,2.0532973,137.94,137.91,0.04977786]
[1740674203496,0.0534973,137.94,137.91,0.04977786]
[1740674203895,0.0534973,137.94,137.92,7.2562]
[1740674204199,0.0534973,137.94,137.91,0.04977786]
[1740674206000,0.0534973,137.94,137.93,7.2557]
[1740674207101,0.0534973,137.94,137.91,0.04977786]
[1740674207499,0.0534973,137.94,137.85,2.0401]
[1740674207695,1.9722,137.99,137.84,197.24]
[1740674207696,7.2593,137.87,137.84,197.24]
[1740674207897,12.36,137.93,137.84,197.24]
[1740674208099,3.8628,137.92,137.84,197.24]
[1740674208297,3.8628,137.92,137.84,204.5004]
[1740674208501,3.8628,137.92,137.84,197.24]
[1740674208705,0.05357244,137.89,137.87,0.04905597]
[1740674210597,0.05357244,137.89,137.8,3.8803]
[1740674210797,3.8628,137.92,137.8,3.8803]
[1740674211211,194.8628,137.92,137.79,10.0360071]
[1740674211506,21.77,137.9,137.79,10.0360071]
[1740674211706,7.2619,137.82,137.76,10.0360071]
[1740674211907,12.38,137.84,137.76,10.0360071]
[1740674212111,16.3206,137.83,137.78,0.04870679]
[1740674212304,7.2626,137.8,137.78,0.04870679]
[1740674212504,0.05264957,137.82,137.78,0.04870679]
[1740674212705,0.05264957,137.82,137.76,10.0360071]
[1740674212901,7.2641,137.77,137.76,10.0360071]
[1740674213102,0.05264957,137.82,137.76,10.0360071]
[1740674213300,7.263,137.8,137.76,10.0360071]
[1740674213503,16.3206,137.83,137.76,10.0360071]
[1740674213704,12.38,137.82,137.76,10.0360071]
[1740674213906,0.05294989,137.79,137.76,10.0360071]
[1740674214500,7.31634989,137.79,137.76,10.0360071]
[1740674214907,0.05294989,137.79,137.76,10.0360071]
[1740674215712,0.05294989,137.79,137.72,7.2664]
[1740674215907,7.31614989,137.79,137.71,3.8558]
[1740674216107,0.05294989,137.79,137.67,2.0097]
[1740674216307,7.2642,137.77,137.67,5.9936]
[1740674216505,0.0484772,137.74,137.67,5.9936]
[1740674216708,0.0484772,137.74,137.69,7.2679]
[1740674217107,0.0484772,137.74,137.67,5.9936]
[1740674217303,0.0484772,137.74,137.73,7.2662]
[1740674217715,1.9209,137.81,137.67,5.9936]
[1740674217908,1.9209,137.81,137.76,7.2642]
[1740674218809,1.9209,137.81,137.77,7.2638]
[1740674219007,0.0494661,137.8,137.77,0.04925626]
[1740674219206,12.36,137.86,137.78,1.8667]
[1740674219505,19.6195,137.86,137.81,0.04925626]
[1740674219711,0.04938479,137.83,137.81,0.04925626]
[1740674219916,0.04938479,137.83,137.82,7.2611]
[1740674220217,0.04938479,137.83,137.81,0.04925626]
[1740674220414,7.2615,137.82,137.81,0.04925626]
[1740674220611,0.04938479,137.83,137.69,1.8667]
[1740674220812,1.9707,137.85,137.69,1.8667]
[1740674221114,7.2616,137.82,137.77,7.2638]
[1740674221313,1.9707,137.85,137.77,7.2638]
[1740674221718,1.9707,137.85,137.78,7.2635]
[1740674221910,0.04833972,137.82,137.69,1.8667]
[1740674222111,0.04833972,137.82,137.78,7.2632]
[1740674222308,7.2611,137.83,137.78,7.2632]
[1740674222510,0.05525578,137.81,137.78,7.2632]
[1740674223023,7.31735578,137.81,137.7,1.9447]
[1740674223215,0.05525578,137.81,137.7,1.9447]
[1740674223516,0.05072695,137.77,137.75,7.2647]
[1740674223718,0.05072695,137.77,137.7,1.9447]
[1740674224818,0.05072695,137.77,137.7,9.2123]
[1740674225118,0.05072695,137.77,137.63,9.95606912]
[1740674225307,12.38,137.79,137.64,3.8953]
[1740674225511,0.05475216,137.73,137.64,3.8953]
[1740674226315,7.2679,137.7,137.64,3.8953]
[1740674226810,0.04762289,137.68,137.64,3.8953]
[1740674227409,0.04762289,137.68,137.65,7.2703]
[1740674227718,0.04762289,137.68,137.64,3.8953]
[1740674228411,0.04762289,137.68,137.67,7.2694]
[1740674229616,7.2661,137.74,137.7,7.2678]
[1740674230718,0.04949826,137.73,137.71,7.31427164]
[1740674230914,0.04949826,137.73,137.71,7.2669]
[1740674231115,0.04949826,137.73,137.71,7.31396007]
[1740674231414,0.04949826,137.73,137.72,7.2667]
[1740674232615,12.36,137.81,137.71,0.04706007]
[1740674232918,12.36,137.81,137.69,197.54]
[1740674233120,3.9211,137.83,137.78,7.2631]
[1740674233316,3.9211,137.83,137.7,2.0112]
[1740674233317,1.9587,137.84,137.7,2.0112]
[1740674233512,12.36,137.86,137.71,14.2926]
[1740674233820,0.04848978,137.8,137.77,0.04777288]
[1740674234321,7.26,137.85,137.71,14.2926]
[1740674234523,3.607e-05,137.8,137.77,0.04828511]
[1740674235018,9.1071,137.88,137.84,7.2601]
[1740674235411,7.2584,137.88,137.84,7.2601]
[1740674235715,124.93637059,137.87,137.84,7.30876359]
[1740674237522,0.04915509,137.87,137.84,0.04866359]
[1740674238023,0.04915509,137.87,137.86,7.2593]
[1740674239616,1.8975,137.96,137.84,0.04866359]
[1740674239922,1.8975,137.96,137.8,391.9794403]
[1740674240320,3.8288,137.98,137.8,391.9794403]
[1740674240619,1.9796,137.98,137.93,7.2555]
[1740674240822,12.32,137.99,137.88,0.04984631]
[1740674241115,0.05198237,137.97,137.86,1.8838]
[1740674241320,0.05198237,137.97,137.92,0.05510941]
[1740674241522,7.2525,137.99,137.92,0.05510941]
[1740674241728,0.05015849,137.96,137.94,7.2548]
[1740674242018,14.2796,138.02,137.94,7.2548]
[1740674242224,14.2796,138.02,137.94,0.05138031]
[1740674242416,0.04996479,137.96,137.94,0.05138031]
[1740674242616,14.2796,138.02,137.94,0.05138031]
[1740674242816,0.0510453,137.96,137.94,0.05138031]
[1740674243018,14.2796,138.02,137.94,0.05138031]
[1740674243221,0.05480064,137.96,137.94,0.05138031]
[1740674243515,7.2534,137.98,137.94,0.05138031]
[1740674243722,0.05333153,137.96,137.94,0.05138031]
[1740674243917,7.2546,137.95,137.94,0.05138031]
[1740674244118,0.05333153,137.96,137.94,0.05138031]
[1740674244524,7.2546,137.95,137.94,0.05138031]
[1740674245724,7.30773153,137.96,137.94,0.05138031]
[1740674245925,0.05333153,137.96,137.94,0.05138031]
[1740674249837,7.2546,137.95,137.94,0.05138031]
[1740674251241,7.30763153,137.96,137.94,0.05138031]
[1740674251433,0.05333153,137.96,137.94,0.05138031]
[1740674251832,7.2546,137.95,137.94,0.05138031]
[1740674253337,12.31333153,137.96,137.87,1.9698]
[1740674253640,3.876,137.95,137.87,1.9698]
[1740674253842,3.876,137.95,137.82,3.8187]